[Event "Live Chess"]
[Site "Chess.com"]
[Date "2023.05.20"]
[Round "-"]
[White "McSlash1"]
[Black "Ayursworld"]
[Result "1-0"]
[WhiteElo "2055"]
[BlackElo "1373"]
[TimeControl "300"]
[EndTime "12:07:18 PDT"]
[Termination "McSlash1 won by checkmate"]

1. e4 {[%clk 0:04:59.4]} 1... c5 {[%clk 0:04:57.4]} 2. Nc3 {[%clk 0:04:58.3]}
2... Nc6 {[%clk 0:04:55.5]} 3. f4 {[%clk 0:04:57.9]} 3... e6 {[%clk 0:04:53.2]}
4. Nf3 {[%clk 0:04:57.4]} 4... Nf6 {[%clk 0:04:47.7]} 5. Bc4 {[%clk 0:04:56.4]}
5... Be7 {[%clk 0:04:44.3]} 6. d3 {[%clk 0:04:55.5]} 6... Nd4 {[%clk 0:04:42.4]}
7. O-O {[%clk 0:04:54.7]} 7... d6 {[%clk 0:04:38.2]} 8. f5 {[%clk 0:04:53.4]}
8... exf5 {[%clk 0:04:36.4]} 9. Ng5 {[%clk 0:04:46.5]} 9... O-O {[%clk
0:04:31.4]} 10. Be3 {[%clk 0:04:38.6]} 10... fxe4 {[%clk 0:04:28.8]} 11. dxe4
{[%clk 0:04:34.1]} 11... Bg4 {[%clk 0:04:20]} 12. Qe1 {[%clk 0:04:26.6]} 12...
Nxc2 {[%clk 0:04:14.5]} 13. Qh4 {[%clk 0:04:13.4]} 13... h6 {[%clk 0:04:07.6]}
14. Nxf7 {[%clk 0:03:59.4]} 14... Rxf7 {[%clk 0:04:01]} 15. Bxf7+ {[%clk
0:03:58.7]} 15... Kxf7 {[%clk 0:03:59.8]} 16. Qxg4 {[%clk 0:03:58]} 16... Nxe3
{[%clk 0:03:50.4]} 17. Qf5 {[%clk 0:03:45.3]} 17... Nxf1 {[%clk 0:03:47.7]} 18.
Rxf1 {[%clk 0:03:45.2]} 18... Qb6 {[%clk 0:03:43.3]} 19. Nd5 {[%clk 0:03:41.6]}
19... Qxb2 {[%clk 0:03:37.2]} 20. Qh5+ {[%clk 0:02:39.2]} 20... Kg8 {[%clk
0:03:27.1]} 21. Nxe7+ {[%clk 0:02:37.1]} 21... Kh8 {[%clk 0:03:25.1]} 22. Qg6
{[%clk 0:02:28.8]} 22... Qd4+ {[%clk 0:03:17.5]} 23. Kh1 {[%clk 0:02:26.9]}
23... Re8 {[%clk 0:03:05]} 24. Nf5 {[%clk 0:02:24.8]} 24... Qd3 {[%clk
0:02:50.1]} 25. Qxg7# {[%clk 0:02:22.5]} 1-0

[Event "Live Chess"]
[Site "Chess.com"]
[Date "2023.05.20"]
[Round "-"]
[White "apl_trainer"]
[Black "xx_blindpuffin_xx"]
[Result "0-1"]
[WhiteElo "1596"]
[BlackElo "2211"]
[TimeControl "300"]
[EndTime "12:07:42 PDT"]
[Termination "xx_blindpuffin_xx won by resignation"]

1. d4 {[%clk 0:04:58.1]} 1... d5 {[%clk 0:04:58.5]} 2. c4 {[%clk 0:04:47.5]}
2... e6 {[%clk 0:04:55.2]} 3. Nc3 {[%clk 0:04:46.2]} 3... c6 {[%clk 0:04:54.6]}
4. Nf3 {[%clk 0:04:44.4]} 4... dxc4 {[%clk 0:04:53.8]} 5. a4 {[%clk 0:04:39.9]}
5... Bb4 {[%clk 0:04:51.9]} 6. e3 {[%clk 0:04:38.2]} 6... b5 {[%clk 0:04:50.7]}
7. Bd2 {[%clk 0:04:36.8]} 7... a5 {[%clk 0:04:48.5]} 8. Rb1 {[%clk 0:04:34.6]}
8... Bd7 {[%clk 0:04:39.6]} 9. Ne5 {[%clk 0:04:22.7]} 9... Nf6 {[%clk
0:04:37.3]} 10. Qf3 {[%clk 0:04:09]} 10... Ra7 {[%clk 0:04:35]} 11. g4 {[%clk
0:04:00.7]} 11... O-O {[%clk 0:04:21]} 12. g5 {[%clk 0:03:47.3]} 12... Nd5
{[%clk 0:04:08]} 13. e4 {[%clk 0:03:45.9]} 13... Nxc3 {[%clk 0:04:00.9]} 14.
bxc3 {[%clk 0:03:44.5]} 14... Bd6 {[%clk 0:03:57.9]} 15. Rg1 {[%clk 0:03:34.6]}
15... Bxe5 {[%clk 0:03:54.1]} 16. dxe5 {[%clk 0:03:33.1]} 16... Na6 {[%clk
0:03:45.6]} 17. Be3 {[%clk 0:03:29.2]} 17... Rb7 {[%clk 0:03:38.5]} 18. Bxc4
{[%clk 0:03:15.4]} 18... Qe7 {[%clk 0:03:31.5]} 19. Bd4 {[%clk 0:02:08.3]} 19...
Nc5 {[%clk 0:03:22.8]} 20. axb5 {[%clk 0:02:02.4]} 20... cxb5 {[%clk 0:03:19.1]}
21. Be2 {[%clk 0:01:47.6]} 21... Bc6 {[%clk 0:03:16.8]} 22. Qf6 {[%clk
0:01:30.5]} 22... Nxe4 {[%clk 0:03:06.4]} 23. Qxe7 {[%clk 0:01:28.1]} 23... Rxe7
{[%clk 0:03:04.6]} 24. Bf3 {[%clk 0:01:24.3]} 24... Nxc3 {[%clk 0:02:56.7]} 25.
Bxc6 {[%clk 0:01:13.5]} 25... Nxb1 {[%clk 0:02:54.6]} 26. Ke2 {[%clk 0:01:09.3]}
26... Rd8 {[%clk 0:02:48.3]} 27. Bb6 {[%clk 0:00:57.2]} 27... Nc3+ {[%clk
0:02:46.2]} 28. Ke3 {[%clk 0:00:46.8]} 28... Nd5+ {[%clk 0:02:41.5]} 29. Bxd5
{[%clk 0:00:44.1]} 29... Rxd5 {[%clk 0:02:40.9]} 30. f4 {[%clk 0:00:40.8]} 30...
b4 {[%clk 0:02:30.8]} 31. Rc1 {[%clk 0:00:36.9]} 31... Re8 {[%clk 0:02:29.1]}
32. Rc7 {[%clk 0:00:32.8]} 32... Rb5 {[%clk 0:02:25.7]} 33. Bd4 {[%clk
0:00:29.5]} 33... b3 {[%clk 0:02:24.2]} 34. Bb2 {[%clk 0:00:28.3]} 34... g6
{[%clk 0:02:17.9]} 35. h4 {[%clk 0:00:25.9]} 35... a4 {[%clk 0:02:16.6]} 36. Ra7
{[%clk 0:00:23.3]} 36... Rb4 {[%clk 0:02:14.4]} 37. Ba3 {[%clk 0:00:20.2]} 37...
b2 {[%clk 0:02:13]} 0-1

[Event "Live Chess"]
[Site "Chess.com"]
[Date "2023.05.20"]
[Round "-"]
[White "Doge_Dandolo"]
[Black "f4nomore"]
[Result "1-0"]
[WhiteElo "2059"]
[BlackElo "1372"]
[TimeControl "300"]
[EndTime "12:07:45 PDT"]
[Termination "Doge_Dandolo won by resignation"]

1. Nf3 {[%clk 0:04:58.8]} 1... g6 {[%clk 0:04:59.9]} 2. c4 {[%clk 0:04:56.2]}
2... Bg7 {[%clk 0:04:59.8]} 3. Nc3 {[%clk 0:04:55.6]} 3... d6 {[%clk 0:04:59.7]}
4. d4 {[%clk 0:04:54.2]} 4... Nd7 {[%clk 0:04:55.5]} 5. e4 {[%clk 0:04:52.2]}
5... a6 {[%clk 0:04:52.6]} 6. Be3 {[%clk 0:04:50.9]} 6... b6 {[%clk 0:04:50.6]}
7. Bd3 {[%clk 0:04:48.9]} 7... Bb7 {[%clk 0:04:49.3]} 8. O-O {[%clk 0:04:47.4]}
8... Ngf6 {[%clk 0:04:47.4]} 9. Bc2 {[%clk 0:04:43.2]} 9... O-O {[%clk
0:04:40.8]} 10. Re1 {[%clk 0:04:42]} 10... Ng4 {[%clk 0:04:39.1]} 11. Bg5 {[%clk
0:04:39.6]} 11... f6 {[%clk 0:04:35.8]} 12. Bc1 {[%clk 0:04:37.8]} 12... e5
{[%clk 0:04:29.6]} 13. d5 {[%clk 0:04:34.4]} 13... Nc5 {[%clk 0:04:24.4]} 14.
Rb1 {[%clk 0:04:26.6]} 14... Bc8 {[%clk 0:04:12.1]} 15. h3 {[%clk 0:04:23.5]}
15... Nh6 {[%clk 0:04:10.1]} 16. b4 {[%clk 0:04:22.4]} 16... Nd7 {[%clk
0:04:04.2]} 17. Ba4 {[%clk 0:04:16.9]} 17... f5 {[%clk 0:03:56.2]} 18. Bc6
{[%clk 0:04:14]} 18... Rb8 {[%clk 0:03:51.6]} 19. Nd2 {[%clk 0:04:08.1]} 19...
f4 {[%clk 0:03:35.4]} 20. Ba3 {[%clk 0:03:50.8]} 20... Nf6 {[%clk 0:03:30.9]}
21. c5 {[%clk 0:03:48.2]} 21... bxc5 {[%clk 0:03:28.1]} 22. bxc5 {[%clk
0:03:45.7]} 22... Rxb1 {[%clk 0:03:26.4]} 23. Qxb1 {[%clk 0:03:44.3]} 23... Bd7
{[%clk 0:03:19.7]} 24. Bxd7 {[%clk 0:03:41.8]} 24... Qxd7 {[%clk 0:03:18.1]} 25.
Qb7 {[%clk 0:03:40]} 25... Ne8 {[%clk 0:03:06.3]} 26. Qxa6 {[%clk 0:03:36.1]}
26... Nf7 {[%clk 0:02:57.2]} 27. Nc4 {[%clk 0:03:29.2]} 27... Qe7 {[%clk
0:02:47.2]} 28. Qb7 {[%clk 0:03:24.5]} 28... Qd7 {[%clk 0:02:42.6]} 29. cxd6
{[%clk 0:03:20.8]} 29... Nfxd6 {[%clk 0:02:38]} 30. Nxd6 {[%clk 0:03:15.6]}
30... Nxd6 {[%clk 0:02:35]} 31. Bxd6 {[%clk 0:03:13.3]} 31... Qxd6 {[%clk
0:02:31.3]} 32. Qb3 {[%clk 0:03:04.8]} 32... c6 {[%clk 0:02:23.7]} 33. a4 {[%clk
0:03:01.8]} 33... cxd5 {[%clk 0:02:21.3]} 34. Nxd5 {[%clk 0:03:00.5]} 34... Qd7
{[%clk 0:01:42.5]} 35. Nf6+ {[%clk 0:02:58.2]} 1-0

[Event "Live Chess"]
[Site "Chess.com"]
[Date "2023.05.20"]
[Round "-"]
[White "JoeyCage"]
[Black "Pandreq"]
[Result "1-0"]
[WhiteElo "2309"]
[BlackElo "1284"]
[TimeControl "300"]
[EndTime "12:07:46 PDT"]
[Termination "JoeyCage won by resignation"]

1. e4 {[%clk 0:04:55.2]} 1... Nf6 {[%clk 0:04:55.9]} 2. e5 {[%clk 0:04:46.9]}
2... Nd5 {[%clk 0:04:54.6]} 3. Qf3 {[%clk 0:04:46.8]} 3... e6 {[%clk 0:04:48.6]}
4. Bc4 {[%clk 0:04:44]} 4... Nb6 {[%clk 0:04:47]} 5. Bb3 {[%clk 0:04:43.5]} 5...
Nc6 {[%clk 0:04:45.1]} 6. Qh3 {[%clk 0:04:40.7]} 6... Nxe5 {[%clk 0:04:36.6]} 7.
d4 {[%clk 0:04:39]} 7... Ng6 {[%clk 0:04:32.2]} 8. Nf3 {[%clk 0:04:36.7]} 8...
d5 {[%clk 0:04:28.9]} 9. Nc3 {[%clk 0:04:31.7]} 9... Bb4 {[%clk 0:04:26.5]} 10.
O-O {[%clk 0:04:29.5]} 10... O-O {[%clk 0:04:20.2]} 11. Qh5 {[%clk 0:04:24.3]}
11... h6 {[%clk 0:04:10.2]} 12. Be3 {[%clk 0:04:15.6]} 12... Bd6 {[%clk
0:03:47.3]} 13. Ne2 {[%clk 0:04:12.1]} 13... Qf6 {[%clk 0:03:43]} 14. a4 {[%clk
0:04:07.9]} 14... Nf4 {[%clk 0:03:39]} 15. Nxf4 {[%clk 0:04:05.4]} 15... Bxf4
{[%clk 0:03:37.9]} 16. g3 {[%clk 0:03:54.4]} 16... Bxe3 {[%clk 0:03:28.7]} 17.
fxe3 {[%clk 0:03:53.3]} 17... Qg6 {[%clk 0:03:23.6]} 18. Qxg6 {[%clk 0:03:49.6]}
18... fxg6 {[%clk 0:03:22.9]} 19. Ne5 {[%clk 0:03:49.5]} 19... g5 {[%clk
0:03:04.1]} 20. Rxf8+ {[%clk 0:03:43.6]} 20... Kxf8 {[%clk 0:03:00.9]} 21. Rf1+
{[%clk 0:03:43.5]} 21... Kg8 {[%clk 0:02:54.7]} 22. Rf7 {[%clk 0:03:39.5]} 22...
c6 {[%clk 0:02:48.4]} 23. Rc7 {[%clk 0:03:35.7]} 23... Rb8 {[%clk 0:02:37.9]}
24. a5 {[%clk 0:03:33.5]} 24... Na8 {[%clk 0:02:36.6]} 25. Re7 {[%clk
0:03:32.1]} 25... b6 {[%clk 0:02:32.1]} 26. Rxa7 {[%clk 0:03:27.1]} 26... bxa5
{[%clk 0:02:31.2]} 27. Rxa5 {[%clk 0:03:25.6]} 27... Nb6 {[%clk 0:02:28.9]} 28.
Nxc6 {[%clk 0:03:22.1]} 28... Ra8 {[%clk 0:02:24.3]} 29. Rxa8 {[%clk 0:03:18.2]}
29... Nxa8 {[%clk 0:02:22.5]} 30. Ne7+ {[%clk 0:03:17.6]} 30... Kf7 {[%clk
0:02:20.2]} 31. Nxc8 {[%clk 0:03:17.5]} 31... Nc7 {[%clk 0:02:18.1]} 32. Nb6
{[%clk 0:03:11.7]} 32... Nb5 {[%clk 0:02:14]} 33. Na4 {[%clk 0:03:09.4]} 33...
Ke7 {[%clk 0:02:11.4]} 34. Nc5 {[%clk 0:03:08.2]} 34... Kd6 {[%clk 0:02:09.8]}
35. Nd3 {[%clk 0:03:07.2]} 35... Nc7 {[%clk 0:02:04.5]} 36. c4 {[%clk 0:03:06]}
36... g6 {[%clk 0:01:52.9]} 37. c5+ {[%clk 0:03:04.3]} 37... Kc6 {[%clk
0:01:49]} 38. Ba4+ {[%clk 0:03:01.4]} 38... Kb7 {[%clk 0:01:45.3]} 39. b4 {[%clk
0:03:00.2]} 39... Na6 {[%clk 0:01:35.1]} 40. b5 {[%clk 0:02:57.8]} 40... Nc7
{[%clk 0:01:34.1]} 41. b6 {[%clk 0:02:55.8]} 41... Na6 {[%clk 0:01:30.4]} 42.
Bb5 {[%clk 0:02:54]} 42... Nb8 {[%clk 0:01:26.6]} 43. Ne5 {[%clk 0:02:51.6]}
43... Na6 {[%clk 0:01:19.2]} 44. Bxa6+ {[%clk 0:02:50.3]} 44... Kxa6 {[%clk
0:01:18.4]} 45. Nxg6 {[%clk 0:02:50.2]} 45... Kb7 {[%clk 0:01:16.5]} 46. Kf2
{[%clk 0:02:46.8]} 1-0

[Event "Live Chess"]
[Site "Chess.com"]
[Date "2023.05.20"]
[Round "-"]
[White "GMHarry-youtube"]
[Black "KGreenGator"]
[Result "0-1"]
[WhiteElo "2112"]
[BlackElo "1788"]
[TimeControl "300"]
[EndTime "12:07:50 PDT"]
[Termination "KGreenGator won by checkmate"]

1. e4 {[%clk 0:04:59.2]} 1... c5 {[%clk 0:04:58.4]} 2. Nf3 {[%clk 0:04:58]} 2...
Nc6 {[%clk 0:04:57.6]} 3. Bb5 {[%clk 0:04:56.4]} 3... Qc7 {[%clk 0:04:56]} 4.
O-O {[%clk 0:04:48.5]} 4... e6 {[%clk 0:04:55]} 5. c3 {[%clk 0:04:47.3]} 5... a6
{[%clk 0:04:53.6]} 6. Bxc6 {[%clk 0:04:43.4]} 6... Qxc6 {[%clk 0:04:52.7]} 7.
Re1 {[%clk 0:04:41.9]} 7... Ne7 {[%clk 0:04:50.2]} 8. d4 {[%clk 0:04:40.3]} 8...
c4 {[%clk 0:04:48.7]} 9. Ne5 {[%clk 0:04:38.8]} 9... Qc7 {[%clk 0:04:46.9]} 10.
Qf3 {[%clk 0:04:36.7]} 10... f6 {[%clk 0:04:37.7]} 11. Ng4 {[%clk 0:04:23.6]}
11... Ng6 {[%clk 0:04:31]} 12. e5 {[%clk 0:04:14.2]} 12... f5 {[%clk 0:04:29]}
13. Ne3 {[%clk 0:03:46.6]} 13... Rb8 {[%clk 0:04:25.3]} 14. g4 {[%clk
0:03:36.6]} 14... f4 {[%clk 0:04:22.1]} 15. Ng2 {[%clk 0:02:53.5]} 15... b5
{[%clk 0:04:12.1]} 16. Nxf4 {[%clk 0:02:50.2]} 16... Bb7 {[%clk 0:04:10.8]} 17.
Qg3 {[%clk 0:02:43.1]} 17... Nxf4 {[%clk 0:03:58.6]} 18. Bxf4 {[%clk 0:02:38.3]}
18... Qc6 {[%clk 0:03:57.7]} 19. Kf1 {[%clk 0:02:32.9]} 19... Be7 {[%clk
0:03:50.8]} 20. Nd2 {[%clk 0:02:22.4]} 20... O-O {[%clk 0:03:49.3]} 21. Ne4
{[%clk 0:02:08.5]} 21... Rf7 {[%clk 0:03:43.9]} 22. Ng5 {[%clk 0:01:51.2]} 22...
Bxg5 {[%clk 0:03:41.6]} 23. Bxg5 {[%clk 0:01:49.5]} 23... Rbf8 {[%clk
0:03:40.8]} 24. f4 {[%clk 0:01:47.4]} 24... h6 {[%clk 0:03:35.2]} 25. Bxh6
{[%clk 0:01:31.9]} 25... gxh6 {[%clk 0:03:32.7]} 26. f5 {[%clk 0:01:29.7]} 26...
exf5 {[%clk 0:03:30.7]} 27. gxf5+ {[%clk 0:01:28.1]} 27... Kh8 {[%clk
0:03:29.7]} 28. f6 {[%clk 0:01:27.3]} 28... Rg8 {[%clk 0:03:27.6]} 29. Qh3
{[%clk 0:01:18.8]} 29... Kh7 {[%clk 0:03:23]} 30. Qf5+ {[%clk 0:01:17]} 30...
Rg6 {[%clk 0:03:18.9]} 31. Ke2 {[%clk 0:01:11.9]} 31... Qe4+ {[%clk 0:03:11.1]}
32. Qxe4 {[%clk 0:01:10.4]} 32... Bxe4 {[%clk 0:03:09.3]} 33. Ke3 {[%clk
0:01:10.3]} 33... Bd5 {[%clk 0:03:02.8]} 34. Rg1 {[%clk 0:01:08.3]} 34... Rxg1
{[%clk 0:03:00.2]} 35. Rxg1 {[%clk 0:01:08.2]} 35... h5 {[%clk 0:02:58.7]} 36.
Kf4 {[%clk 0:01:06.4]} 36... Kh6 {[%clk 0:02:57.9]} 37. h4 {[%clk 0:01:04.7]}
37... Be6 {[%clk 0:02:56.2]} 38. Rg8 {[%clk 0:01:02.8]} 38... Rxf6+ {[%clk
0:02:53.1]} 39. exf6 {[%clk 0:01:02.4]} 39... Bxg8 {[%clk 0:02:52.3]} 40. Ke5
{[%clk 0:00:54]} 40... Kg6 {[%clk 0:02:49.4]} 41. d5 {[%clk 0:00:49.5]} 41...
d6+ {[%clk 0:02:43.6]} 42. Kxd6 {[%clk 0:00:47.3]} 42... Kxf6 {[%clk 0:02:43.3]}
43. Kc6 {[%clk 0:00:46.1]} 43... Bxd5+ {[%clk 0:02:39.7]} 44. Kxd5 {[%clk
0:00:45]} 44... Kf5 {[%clk 0:02:39.5]} 45. a4 {[%clk 0:00:41.1]} 45... Kg4
{[%clk 0:02:38]} 46. axb5 {[%clk 0:00:38.9]} 46... axb5 {[%clk 0:02:37.4]} 47.
Ke4 {[%clk 0:00:23.8]} 47... Kxh4 {[%clk 0:02:36.7]} 48. Kf3 {[%clk 0:00:19.5]}
48... Kh3 {[%clk 0:02:34.5]} 49. Kf4 {[%clk 0:00:17.9]} 49... h4 {[%clk
0:02:33.7]} 50. Kf3 {[%clk 0:00:17.1]} 50... Kh2 {[%clk 0:02:32.7]} 51. Kf2
{[%clk 0:00:16.6]} 51... h3 {[%clk 0:02:31.9]} 52. Kf3 {[%clk 0:00:16]} 52...
Kg1 {[%clk 0:02:30.2]} 53. Ke4 {[%clk 0:00:14.9]} 53... h2 {[%clk 0:02:29.6]}
54. Kd5 {[%clk 0:00:14.8]} 54... h1=Q+ {[%clk 0:02:28.7]} 55. Kc5 {[%clk
0:00:14.7]} 55... Qg2 {[%clk 0:02:26.5]} 56. Kxb5 {[%clk 0:00:14.6]} 56... Qxb2+
{[%clk 0:02:25.3]} 57. Kxc4 {[%clk 0:00:14.5]} 57... Qc2 {[%clk 0:02:24.2]} 58.
Kb4 {[%clk 0:00:13.4]} 58... Kf2 {[%clk 0:02:23.1]} 59. c4 {[%clk 0:00:12.2]}
59... Ke3 {[%clk 0:02:22.4]} 60. Kb5 {[%clk 0:00:11.3]} 60... Kd4 {[%clk
0:02:21.5]} 61. c5 {[%clk 0:00:11]} 61... Qxc5+ {[%clk 0:02:20.4]} 62. Ka4
{[%clk 0:00:10.9]} 62... Qb6 {[%clk 0:02:18.3]} 63. Ka3 {[%clk 0:00:09.6]} 63...
Kc3 {[%clk 0:02:17.9]} 64. Ka2 {[%clk 0:00:09.5]} 64... Qb2# {[%clk 0:02:16.5]}
0-1

[Event "Live Chess"]
[Site "Chess.com"]
[Date "2023.05.20"]
[Round "-"]
[White "LaupMiths"]
[Black "Salpingidis"]
[Result "0-1"]
[WhiteElo "1821"]
[BlackElo "2290"]
[TimeControl "300"]
[EndTime "12:07:51 PDT"]
[Termination "Salpingidis won by checkmate"]

1. d4 {[%clk 0:04:56.3]} 1... e6 {[%clk 0:04:59.9]} 2. Nf3 {[%clk 0:04:54.7]}
2... d5 {[%clk 0:04:59.1]} 3. g3 {[%clk 0:04:53.6]} 3... Nf6 {[%clk 0:04:58.4]}
4. Bg2 {[%clk 0:04:53]} 4... Be7 {[%clk 0:04:58.1]} 5. O-O {[%clk 0:04:52.3]}
5... O-O {[%clk 0:04:57.8]} 6. b3 {[%clk 0:04:51.7]} 6... b6 {[%clk 0:04:57.3]}
7. Bb2 {[%clk 0:04:51.4]} 7... Bb7 {[%clk 0:04:56.9]} 8. c4 {[%clk 0:04:50.4]}
8... c5 {[%clk 0:04:56.3]} 9. Nc3 {[%clk 0:04:47.1]} 9... dxc4 {[%clk
0:04:54.1]} 10. bxc4 {[%clk 0:04:47]} 10... cxd4 {[%clk 0:04:53.2]} 11. Nxd4
{[%clk 0:04:45]} 11... Bxg2 {[%clk 0:04:53.1]} 12. Kxg2 {[%clk 0:04:43.4]} 12...
Qc7 {[%clk 0:04:52.1]} 13. f3 {[%clk 0:04:40.2]} 13... Nc6 {[%clk 0:04:51.2]}
14. Ndb5 {[%clk 0:04:36.1]} 14... Qb7 {[%clk 0:04:50.2]} 15. Ne4 {[%clk
0:04:29.7]} 15... Nxe4 {[%clk 0:04:46.4]} 16. fxe4 {[%clk 0:04:28]} 16... Rad8
{[%clk 0:04:42.2]} 17. Qc1 {[%clk 0:04:24.1]} 17... a6 {[%clk 0:04:38]} 18. Qc3
{[%clk 0:04:21.4]} 18... e5 {[%clk 0:04:23.7]} 19. Na3 {[%clk 0:04:16.8]} 19...
Nd4 {[%clk 0:04:20.7]} 20. Rf2 {[%clk 0:04:11.1]} 20... Qxe4+ {[%clk 0:04:18.9]}
21. Kg1 {[%clk 0:03:52.6]} 21... Nxe2+ {[%clk 0:04:16.9]} 22. Rxe2 {[%clk
0:03:50.7]} 22... Qxe2 {[%clk 0:04:16.8]} 23. Re1 {[%clk 0:03:40.6]} 23... Bc5+
{[%clk 0:04:10.1]} 24. Kh1 {[%clk 0:03:38.4]} 24... Rd1 {[%clk 0:04:09.6]} 25.
Rxd1 {[%clk 0:03:33.2]} 25... Qe4+ {[%clk 0:04:09]} 26. Qf3 {[%clk 0:03:29.5]}
26... Qxf3# {[%clk 0:04:08.9]} 0-1

[Event "Live Chess"]
[Site "Chess.com"]
[Date "2023.05.20"]
[Round "-"]
[White "TobyQuaite"]
[Black "viktorskliarov"]
[Result "0-1"]
[WhiteElo "1685"]
[BlackElo "2650"]
[TimeControl "300"]
[EndTime "12:07:52 PDT"]
[Termination "viktorskliarov won by resignation"]

1. e4 {[%clk 0:04:57.8]} 1... c5 {[%clk 0:04:58.6]} 2. Nf3 {[%clk 0:04:56.4]}
2... Nc6 {[%clk 0:04:56.9]} 3. Bb5 {[%clk 0:04:54.4]} 3... e6 {[%clk 0:04:52.5]}
4. c3 {[%clk 0:04:52.1]} 4... Nge7 {[%clk 0:04:49.8]} 5. d4 {[%clk 0:04:50.8]}
5... cxd4 {[%clk 0:04:43.8]} 6. cxd4 {[%clk 0:04:50.7]} 6... a6 {[%clk
0:04:43.5]} 7. Ba4 {[%clk 0:04:48.8]} 7... b5 {[%clk 0:04:35]} 8. Bc2 {[%clk
0:04:46.2]} 8... Nb4 {[%clk 0:04:28.3]} 9. Nc3 {[%clk 0:04:40.8]} 9... Nxc2+
{[%clk 0:04:25.8]} 10. Qxc2 {[%clk 0:04:40.7]} 10... Bb7 {[%clk 0:04:25.1]} 11.
Bf4 {[%clk 0:04:37.9]} 11... Rc8 {[%clk 0:04:20.3]} 12. Qd2 {[%clk 0:04:34.3]}
12... Ng6 {[%clk 0:04:12.8]} 13. Bg3 {[%clk 0:04:33.2]} 13... Bb4 {[%clk
0:04:06.1]} 14. e5 {[%clk 0:04:15.4]} 14... Bxf3 {[%clk 0:03:33.7]} 15. gxf3
{[%clk 0:04:15.3]} 15... h5 {[%clk 0:03:33.1]} 16. h4 {[%clk 0:03:57.4]} 16...
d5 {[%clk 0:03:31.8]} 17. a3 {[%clk 0:03:26.8]} 17... Bxc3 {[%clk 0:03:22.7]}
18. bxc3 {[%clk 0:03:26.7]} 18... Qa5 {[%clk 0:03:21.2]} 19. O-O {[%clk
0:03:14.4]} 19... Qxc3 {[%clk 0:03:01.4]} 20. Qe3 {[%clk 0:02:57.1]} 20... Kd7
{[%clk 0:02:43]} 21. Rfc1 {[%clk 0:02:46.6]} 21... Qxe3 {[%clk 0:02:40.6]} 22.
fxe3 {[%clk 0:02:46.5]} 22... Rxc1+ {[%clk 0:02:38.4]} 23. Rxc1 {[%clk
0:02:46.4]} 23... Rc8 {[%clk 0:02:37.3]} 24. Rxc8 {[%clk 0:02:29.7]} 24... Kxc8
{[%clk 0:02:37.2]} 25. Kf2 {[%clk 0:02:29.4]} 25... Kb7 {[%clk 0:02:30.7]} 26.
e4 {[%clk 0:02:23.6]} 26... Ne7 {[%clk 0:02:20.7]} 27. Ke3 {[%clk 0:02:18.6]}
27... a5 {[%clk 0:02:18.1]} 28. Be1 {[%clk 0:02:16.2]} 28... Kb6 {[%clk
0:02:16.6]} 29. Kd3 {[%clk 0:02:06.7]} 29... Nc6 {[%clk 0:02:00.9]} 30. exd5
{[%clk 0:02:01.7]} 30... exd5 {[%clk 0:01:59.1]} 31. f4 {[%clk 0:01:57.4]} 31...
g6 {[%clk 0:01:53.6]} 32. Bd2 {[%clk 0:01:46.2]} 32... a4 {[%clk 0:01:29.6]} 33.
Bc3 {[%clk 0:01:38.6]} 33... b4 {[%clk 0:01:26.4]} 34. axb4 {[%clk 0:01:26.5]}
34... Kb5 {[%clk 0:01:24.3]} 35. Bd2 {[%clk 0:01:04.5]} 35... Nxb4+ {[%clk
0:01:22.7]} 0-1

[Event "Live Chess"]
[Site "Chess.com"]
[Date "2023.05.20"]
[Round "-"]
[White "Richardallis"]
[Black "rideuv21"]
[Result "1-0"]
[WhiteElo "1783"]
[BlackElo "1829"]
[TimeControl "300"]
[EndTime "12:07:55 PDT"]
[Termination "Richardallis won by checkmate"]

1. d4 {[%clk 0:04:57.6]} 1... c5 {[%clk 0:04:59.9]} 2. d5 {[%clk 0:04:55]} 2...
Nf6 {[%clk 0:04:55.5]} 3. c4 {[%clk 0:04:53.8]} 3... b5 {[%clk 0:04:51.8]} 4.
Bg5 {[%clk 0:04:50.3]} 4... bxc4 {[%clk 0:04:48.9]} 5. Bxf6 {[%clk 0:04:49.2]}
5... gxf6 {[%clk 0:04:47.7]} 6. e4 {[%clk 0:04:48.2]} 6... Ba6 {[%clk
0:04:44.9]} 7. Nc3 {[%clk 0:04:47]} 7... d6 {[%clk 0:04:43.3]} 8. f4 {[%clk
0:04:41.3]} 8... Nd7 {[%clk 0:04:41.1]} 9. Qa4 {[%clk 0:04:35.8]} 9... Qb6
{[%clk 0:04:38.7]} 10. Rb1 {[%clk 0:04:28.9]} 10... Bg7 {[%clk 0:04:34.7]} 11.
Nf3 {[%clk 0:04:25.8]} 11... f5 {[%clk 0:04:32.2]} 12. e5 {[%clk 0:04:23.2]}
12... dxe5 {[%clk 0:04:31]} 13. fxe5 {[%clk 0:04:22.6]} 13... O-O-O {[%clk
0:04:26.5]} 14. Bxc4 {[%clk 0:04:20.5]} 14... Bxc4 {[%clk 0:04:25]} 15. Qxc4
{[%clk 0:04:19.9]} 15... Nxe5 {[%clk 0:04:24.4]} 16. Nxe5 {[%clk 0:04:17.9]}
16... Bxe5 {[%clk 0:04:24.3]} 17. O-O {[%clk 0:04:12.6]} 17... Qd6 {[%clk
0:04:19.5]} 18. Rxf5 {[%clk 0:04:05.4]} 18... Bxh2+ {[%clk 0:04:16.4]} 19. Kh1
{[%clk 0:04:04.9]} 19... Be5 {[%clk 0:04:14.7]} 20. Ne4 {[%clk 0:03:45.8]} 20...
Qh6+ {[%clk 0:04:12]} 21. Kg1 {[%clk 0:03:45.3]} 21... Qe3+ {[%clk 0:04:10.2]}
22. Kh1 {[%clk 0:03:38.6]} 22... Bd4 {[%clk 0:04:06.7]} 23. Qa6+ {[%clk
0:03:22]} 23... Kd7 {[%clk 0:04:04]} 24. Qc6# {[%clk 0:03:20.2]} 1-0